fUST/lending_fUST_20250202
["ID","MTS","AMOUNT","RATE_DAILY","PERIOD"]
[351249713,1738479040314,-500.0,0.00016575,2]
[351249714,1738479040323,-500.0,0.00016575,2]
[351249715,1738479040333,-500.0,0.00016575,2]
[351249716,1738479040342,-430.38540521,0.00016575,2]
[351249717,1738479040351,-500.0,0.00016575,2]
[351249718,1738479040361,-500.0,0.00016575,2]
[351249719,1738479040370,-235.62,0.00016575,2]
[351249720,1738479040379,-500.0,0.00016575,2]
[351249721,1738479040388,-500.0,0.00016575,2]
[351249722,1738479040397,-500.0,0.00016575,2]
[351249723,1738479040407,-500.0,0.00016575,2]
[351249724,1738479040416,-500.0,0.00016575,2]
[351249725,1738479040426,-500.0,0.00016575,2]
[351249726,1738479040436,-500.0,0.00016575,2]
[351249727,1738479040445,-482.67531648,0.00016575,2]
[351249728,1738479040454,-507.36123817,0.00016575,2]
[351249729,1738479040464,-500.0,0.00016575,2]
[351249730,1738479040473,-500.0,0.00016575,2]
[351249731,1738479040482,-500.0,0.00016575,2]
[351249732,1738479040491,-500.0,0.00016575,2]
[351249733,1738479040501,-500.0,0.00016575,2]
[351249734,1738479040511,-1062.97,0.00016575,2]
[351249735,1738479040520,-500.0,0.00016575,2]
[351249736,1738479040529,-500.0,0.00016575,2]
[351249737,1738479040539,-546.04,0.00016575,2]
[351249738,1738479040548,-513.83,0.00016575,2]
[351249739,1738479040557,-512.91866977,0.00016575,2]
[351249740,1738479040566,-500.0,0.00016575,2]
[351249741,1738479040576,-500.0,0.00016575,2]
[351249743,1738479040585,-500.0,0.00016575,2]
[351249744,1738479040595,-4071.48,0.00016575,2]
[351249745,1738479040604,-500.0,0.00016575,2]
[351249747,1738479040613,-505.38179914,0.00016575,2]
[351249748,1738479040622,-500.0,0.00016575,2]
[351249750,1738479040631,-383.94639281,0.00016575,2]
[351249751,1738479040641,-507.35599046,0.00016575,2]
[351249752,1738479040650,-500.0,0.00016575,2]
[351249753,1738479040659,-618.21864201,0.00016575,2]
[351249754,1738479040669,-909.89,0.00016575,2]
[351249755,1738479040678,-500.0,0.00016575,2]
[351249756,1738479040687,-500.0,0.00016575,2]
[351249757,1738479040696,-500.0,0.00016575,2]
[351249758,1738479040706,-500.0,0.00016575,2]
[351249759,1738479040715,-500.0,0.00016575,2]
[351249761,1738479040724,-500.0,0.00016575,2]
[351249762,1738479040734,-500.0,0.00016575,2]
[351249763,1738479040743,-373.88691648,0.00016575,2]
[351249764,1738479040753,-500.0,0.00016575,2]
[351249765,1738479040762,-500.0,0.00016575,2]
[351249766,1738479040771,-500.0,0.00016575,2]
[351249767,1738479040781,-500.0,0.00016575,2]
[351249768,1738479040791,-393.09339011,0.00016575,2]
[351249769,1738479040800,-500.0,0.00016575,2]
[351249770,1738479040809,-500.0,0.00016575,2]
[351249771,1738479040819,-500.0,0.00016575,2]
[351249772,1738479040828,-500.0,0.00016575,2]
[351249773,1738479040837,-500.0,0.00016575,2]
[351249774,1738479040847,-500.0,0.00016575,2]
[351249775,1738479040857,-76.33795066,0.00016575,2]
[351249778,1738479042735,326.92,0.00010959,2]
[351249820,1738479046692,-500.0,0.00016438,2]
[351249821,1738479046701,-500.0,0.00016438,2]
[351249823,1738479046711,-338.35796954,0.00016438,2]
[351249824,1738479046721,-423.66204934,0.00016575,2]
[351249825,1738479046730,-500.0,0.00016575,2]
[351249826,1738479046740,-500.0,0.00016575,2]
[351249827,1738479046750,-500.0,0.00016575,2]
[351249828,1738479046760,-500.0,0.00016575,2]
[351249829,1738479046769,-500.0,0.00016575,2]
[351249830,1738479046778,-503.86361102,0.00016575,2]
[351249831,1738479046788,-500.0,0.00016575,2]
[351249832,1738479046797,-500.0,0.00016575,2]
[351249833,1738479046807,-500.0,0.00016575,2]
[351249834,1738479046817,-500.0,0.00016575,2]
[351249835,1738479046827,-500.0,0.00016575,2]
[351249836,1738479046837,-500.0,0.00016575,2]
[351249837,1738479046847,-581.29069021,0.00016575,2]
[351249838,1738479046857,-500.0,0.00016575,2]
[351249839,1738479046866,-500.0,0.00016575,2]
[351249840,1738479046876,-500.0,0.00016575,2]
[351249841,1738479046892,-715.44,0.00016575,2]
[351249842,1738479046910,-2897.12,0.00016575,2]
[351249843,1738479046920,-500.0,0.00016575,2]
[351249844,1738479046930,-500.0,0.00016575,2]
[351249845,1738479046940,-500.0,0.00016575,2]
[351249846,1738479046950,-500.0,0.00016575,2]
[351249847,1738479046960,-1673.77,0.00016575,2]
[351249848,1738479046970,-500.0,0.00016575,2]
[351249849,1738479046980,-500.0,0.00016575,2]
[351249850,1738479046989,-547.67,0.00016575,2]
[351249851,1738479046999,-2324.84,0.00016575,2]
[351249852,1738479047008,-770.01,0.00016575,2]
[351249853,1738479047017,-500.0,0.00016575,2]
[351249854,1738479047027,-500.0,0.00016575,2]
[351249855,1738479047036,-500.0,0.00016575,2]
[351249856,1738479047045,-500.0,0.00016575,2]
[351249857,1738479047054,-500.0,0.00016575,2]
[351249858,1738479047063,-500.0,0.00016575,2]
[351249859,1738479047072,-500.0,0.00016575,2]
[351249860,1738479047082,-500.0,0.00016575,2]
[351249861,1738479047091,-723.97567989,0.00016575,2]
[351249862,1738479155918,299.51,0.00010959,2]
[351249863,1738479166425,249.59,0.00010959,2]
[351249864,1738479176967,207.99,0.00010959,2]
[351249865,1738479187499,173.33,0.00010959,2]
[351249867,1738479190603,171.078129,0.00013973,2]
[351249868,1738479197984,866.65,0.00010959,2]
[351249869,1738479498599,172.40554576,0.0002,120]
[351249870,1738479926608,812.4,0.00010959,2]
[351249871,1738480025190,-1339.79832252,0.00015536,2]
[351249872,1738480029112,247.4,0.00010959,2]
[351249874,1738480033986,170.636862,0.00013973,2]
[351249875,1738480039813,206.17,0.00010959,2]
[351249876,1738480040134,-710.20167748,0.00015536,2]
[351249877,1738480040159,-300.0,0.00015536,2]
[351249878,1738480040183,-8660.57774736,0.00015537,2]
[351249879,1738480050495,549.78,0.00010959,2]
[351249880,1738480060973,601.32,0.00010959,2]
[351249881,1738480071437,501.1,0.00010959,2]
[351249882,1738480082130,636.32,0.00010959,2]
[351249883,1738480092636,636.32,0.00010959,2]
[351249884,1738480103161,507.07,0.00010959,2]
[351249885,1738480113680,549.14,0.00010959,2]
[351249886,1738480124247,505.57,0.00010959,2]
[351249887,1738480134730,421.31,0.00010959,2]
[351249889,1738480145223,424.34,0.00010959,2]
[351249890,1738480155688,381.37,0.00010959,2]
[351249891,1738480163091,-300.0,0.00015536,2]
[351249892,1738480163112,-1198.41421016,0.00015537,2]
[351249893,1738480166396,317.81,0.00010959,2]
[351249894,1738480171104,-1086.43146343,0.00015537,2]
[351249895,1738480176865,403.58,0.00010959,2]
[351249896,1738480187554,336.32,0.00010959,2]
[351249897,1738480198046,280.26,0.00010959,2]
[351249898,1738480208529,233.55,0.00010959,2]
[351249899,1738480219118,194.63,0.00010959,2]
[351249900,1738480230074,162.19,0.00010959,2]
[351249927,1738480232283,-5288.27824663,0.00015506,2]
[351249938,1738480238019,-3139.9,0.00015506,2]
[351249943,1738480238412,-16471.82175337,0.00015506,2]
[351249944,1738480238422,-300.0,0.00015536,2]
[351249945,1738480238431,-13255.3373504,0.0001625,2]
[351249946,1738480238441,-3304.358573,0.000164,2]
[351249947,1738480238451,-331.69037743,0.00016437,2]
[351249948,1738480238460,-215.11574087,0.00016437,2]
[351249949,1738480238470,-500.0,0.00016438,2]
[351249950,1738480238480,-500.0,0.00016438,2]
[351249951,1738480238490,-500.0,0.00016438,2]
[351249952,1738480238501,-322.92746997,0.00016438,2]
[351249953,1738480238510,-500.0,0.00016438,2]
[351249954,1738480238520,-500.0,0.00016438,2]
[351249955,1738480238530,-500.0,0.00016438,2]
[351249956,1738480238540,-500.0,0.00016438,2]
[351249957,1738480238550,-500.0,0.00016438,2]
[351249958,1738480238560,-500.0,0.00016438,2]
[351249959,1738480238569,-500.0,0.00016438,2]
[351249960,1738480238579,-500.0,0.00016438,2]
[351249961,1738480238588,-500.0,0.00016438,2]
[351249962,1738480238598,-500.0,0.00016438,2]
[351249963,1738480238608,-580.12917351,0.00016438,2]
[351249964,1738480238618,-500.0,0.00016438,2]
[351249965,1738480238628,-500.0,0.00016438,2]
[351249966,1738480238638,-500.0,0.00016438,2]
[351249967,1738480238648,-500.0,0.00016438,2]
[351249968,1738480238658,-479.0,0.00016438,2]
[351249969,1738480238668,-500.0,0.00016438,2]
[351249970,1738480238677,-507.28356888,0.00016438,2]
[351249971,1738480238690,-500.0,0.00016438,2]
[351249972,1738480238701,-500.0,0.00016438,2]
[351249973,1738480238710,-500.0,0.00016438,2]
[351249974,1738480238720,-500.0,0.00016438,2]
[351249975,1738480238730,-500.0,0.00016438,2]
[351249976,1738480238740,-500.0,0.00016438,2]
[351249977,1738480238751,-500.0,0.00016438,2]
[351249978,1738480238760,-500.0,0.00016438,2]
[351249979,1738480238909,-500.0,0.00016438,2]
[351249980,1738480238920,-500.0,0.00016438,2]
[351249981,1738480238930,-500.0,0.00016438,2]
[351249982,1738480238939,-500.0,0.00016438,2]
[351249983,1738480238949,-500.0,0.00016438,2]
[351249984,1738480238958,-500.0,0.00016438,2]
[351249985,1738480238968,-504.51334697,0.00016438,2]
[351249986,1738480238977,-500.0,0.00016438,2]
[351249987,1738480238987,-500.0,0.00016438,2]
[351249988,1738480238997,-500.0,0.00016438,2]
[351249989,1738480239009,-501.49015266,0.00016438,2]
[351249990,1738480239018,-500.0,0.00016438,2]
[351249991,1738480239028,-500.0,0.00016438,2]
[351249992,1738480239037,-500.0,0.00016438,2]
[351249993,1738480239047,-500.0,0.00016438,2]
[351249994,1738480239056,-500.0,0.00016438,2]
[351249995,1738480239066,-500.0,0.00016438,2]
[351249996,1738480239076,-500.0,0.00016438,2]
[351249997,1738480239086,-500.0,0.00016438,2]
[351249998,1738480239096,-500.0,0.00016438,2]
[351249999,1738480239106,-500.0,0.00016438,2]
[351250000,1738480239116,-500.0,0.00016438,2]
[351250001,1738480239126,-500.0,0.00016438,2]
[351250002,1738480239135,-501.56098355,0.00016438,2]
[351250003,1738480239145,-500.0,0.00016438,2]
[351250004,1738480239155,-500.0,0.00016438,2]
[351250005,1738480239164,-500.0,0.00016438,2]
[351250006,1738480239175,-500.0,0.00016438,2]
[351250007,1738480239184,-500.0,0.00016438,2]
[351250008,1738480239194,-505.11052012,0.00016438,2]
[351250009,1738480239204,-500.0,0.00016438,2]
[351250010,1738480239213,-500.0,0.00016438,2]
[351250011,1738480239223,-509.19941547,0.00016438,2]
[351250012,1738480239233,-500.0,0.00016438,2]
[351250013,1738480239243,-500.0,0.00016438,2]
[351250014,1738480239254,-500.0,0.00016438,2]
[351250015,1738480239264,-500.0,0.00016438,2]
[351250016,1738480239274,-500.0,0.00016438,2]
[351250017,1738480239284,-500.0,0.00016438,2]
[351250018,1738480239294,-154.07922469,0.00016438,2]
[351250020,1738480239307,-500.0,0.00016438,2]
[351250022,1738480239317,-500.0,0.00016438,2]
[351250023,1738480239326,-500.0,0.00016438,2]
[351250024,1738480239336,-200.0,0.00016438,2]
[351250025,1738480239346,-500.0,0.00016438,2]
[351250026,1738480239355,-500.0,0.00016438,2]
[351250027,1738480239365,-500.0,0.00016438,2]
[351250028,1738480239374,-502.57495816,0.00016438,2]
[351250029,1738480239384,-500.0,0.00016438,2]
[351250030,1738480239394,-500.0,0.00016438,2]
[351250031,1738480239403,-500.0,0.00016438,2]
[351250032,1738480239413,-500.0,0.00016438,2]
[351250033,1738480239422,-501.57866596,0.00016438,2]
[351250034,1738480239431,-500.0,0.00016438,2]
[351250035,1738480239441,-500.0,0.00016438,2]
[351250036,1738480239451,-500.0,0.00016438,2]
[351250037,1738480239461,-500.0,0.00016438,2]
[351250038,1738480239471,-500.0,0.00016438,2]
[351250039,1738480239480,-500.0,0.00016438,2]
[351250040,1738480239490,-500.0,0.00016438,2]
[351250041,1738480239501,-500.0,0.00016438,2]
[351250042,1738480239511,-500.0,0.00016438,2]
[351250043,1738480239520,-500.0,0.00016438,2]
[351250044,1738480239530,-500.0,0.00016438,2]
[351250045,1738480239539,-501.81325893,0.00016438,2]
[351250046,1738480239549,-500.0,0.00016438,2]
[351250047,1738480239559,-500.0,0.00016438,2]
[351250048,1738480239568,-500.0,0.00016438,2]
[351250050,1738480239579,-500.0,0.00016438,2]
[351250051,1738480239589,-504.12993409,0.00016438,2]
[351250052,1738480239599,-500.0,0.00016438,2]
[351250053,1738480239608,-500.0,0.00016438,2]
[351250054,1738480239618,-500.0,0.00016438,2]
[351250055,1738480239628,-504.7204919,0.00016438,2]
[351250056,1738480239638,-500.0,0.00016438,2]
[351250057,1738480239649,-500.0,0.00016438,2]
[351250058,1738480239659,-501.01496092,0.00016438,2]
[351250059,1738480239668,-500.0,0.00016438,2]
[351250060,1738480239679,-500.0,0.00016438,2]
[351250061,1738480239689,-298.25359222,0.00016438,2]
[351250062,1738480239698,-500.0,0.00016438,2]
[351250063,1738480239709,-500.0,0.00016438,2]
[351250064,1738480239719,-500.0,0.00016438,2]
[351250065,1738480239728,-500.0,0.00016438,2]
[351250066,1738480239738,-502.26685317,0.00016438,2]
[351250067,1738480239747,-500.0,0.00016438,2]
[351250068,1738480239758,-500.0,0.00016438,2]
[351250069,1738480239767,-501.92872497,0.00016438,2]
[351250070,1738480239777,-415.18036311,0.00016438,2]
[351250071,1738480239787,-500.0,0.00016438,2]
[351250072,1738480239797,-500.0,0.00016438,2]
[351250073,1738480239807,-500.0,0.00016438,2]
[351250074,1738480239816,-501.16418035,0.00016438,2]
[351250075,1738480239826,-422.59193917,0.00016438,2]
[351250076,1738480239836,-500.0,0.00016438,2]
[351250077,1738480239846,-500.0,0.00016438,2]
[351250078,1738480239856,-500.0,0.00016438,2]
[351250079,1738480239866,-500.0,0.00016438,2]
[351250080,1738480239876,-504.50185385,0.00016438,2]
[351250081,1738480239885,-500.0,0.00016438,2]
[351250082,1738480239895,-500.0,0.00016438,2]
[351250083,1738480239905,-398.58973083,0.00016438,2]
[351250084,1738480239915,-500.0,0.00016438,2]
[351250085,1738480239925,-500.0,0.00016438,2]
[351250086,1738480239935,-500.0,0.00016438,2]
[351250087,1738480239945,-500.0,0.00016438,2]
[351250088,1738480239954,-625.53,0.00016438,2]
[351250089,1738480239964,-500.0,0.00016438,2]
[351250090,1738480239974,-1126.39,0.00016438,2]
[351250092,1738480239984,-500.0,0.00016438,2]
[351250094,1738480239993,-554.35,0.00016438,2]
[351250096,1738480240011,-585.14,0.00016438,2]
[351250097,1738480240025,-500.0,0.00016438,2]
[351250098,1738480240037,-237.61177019,0.00016438,2]
[351250099,1738480240047,-500.0,0.00016438,2]
[351250100,1738480240057,-500.0,0.00016438,2]
[351250101,1738480240067,-7110.45,0.00016438,2]
[351250102,1738480240077,-392.939008,0.00016438,2]
[351250103,1738480240088,-500.0,0.00016438,2]
[351250104,1738480240098,-500.0,0.00016438,2]
[351250105,1738480240107,-500.0,0.00016438,2]
[351250106,1738480240117,-540.88,0.00016438,2]
[351250107,1738480240127,-500.0,0.00016438,2]
[351250108,1738480240137,-500.0,0.00016438,2]
[351250109,1738480240147,-500.0,0.00016438,2]
[351250110,1738480240156,-500.0,0.00016438,2]
[351250111,1738480240166,-500.0,0.00016438,2]
[351250112,1738480240176,-373.72105351,0.00016438,2]
[351250113,1738480240186,-500.0,0.00016438,2]
[351250114,1738480240195,-500.0,0.00016438,2]
[351250115,1738480240205,-500.0,0.00016438,2]
[351250116,1738480240215,-500.0,0.00016438,2]
[351250117,1738480240224,-500.0,0.00016438,2]
[351250118,1738480240235,-500.0,0.00016438,2]
[351250119,1738480240244,-500.0,0.00016438,2]
[351250120,1738480240255,-500.0,0.00016438,2]
[351250121,1738480240265,-500.0,0.00016438,2]
[351250122,1738480240275,-500.0,0.00016438,2]
[351250123,1738480240284,-500.0,0.00016438,2]
[351250124,1738480240294,-500.0,0.00016438,2]
[351250125,1738480240307,-524.82668738,0.00016438,2]
[351250126,1738480240328,-490.94331262,0.00016438,2]
[351250127,1738480240339,-500.0,0.00016438,2]
[351250128,1738480240349,-591.95435161,0.00016438,2]
[351250129,1738480240359,-500.0,0.00016438,2]
[351250130,1738480240368,-500.0,0.00016438,2]
[351250131,1738480240379,-500.0,0.00016438,2]
[351250133,1738480240389,-500.0,0.00016438,2]
[351250135,1738480240399,-500.0,0.00016438,2]
[351250137,1738480240409,-500.0,0.00016438,2]
[351250138,1738480240419,-508.06899545,0.00016438,2]
[351250139,1738480240428,-500.0,0.00016438,2]
[351250140,1738480240438,-500.0,0.00016438,2]
[351250141,1738480240447,-500.0,0.00016438,2]
[351250142,1738480240456,-500.0,0.00016438,2]
[351250143,1738480240465,-500.0,0.00016438,2]
[351250144,1738480240475,-500.0,0.00016438,2]
[351250145,1738480240484,-500.0,0.00016438,2]
[351250146,1738480240493,-500.0,0.00016438,2]
[351250147,1738480240504,-500.0,0.00016438,2]
[351250148,1738480240513,-500.0,0.00016438,2]
[351250149,1738480240523,-500.0,0.00016438,2]
[351250150,1738480240532,-1894.2,0.00016438,2]
[351250151,1738480240542,-768.59,0.00016438,2]
[351250152,1738480240551,-500.0,0.00016438,2]
[351250153,1738480240561,-500.0,0.00016438,2]
[351250154,1738480240571,-500.0,0.00016438,2]
[351250155,1738480240581,-969.3,0.00016438,2]
[351250156,1738480240591,-895.2,0.00016438,2]
[351250157,1738480240600,-500.0,0.00016438,2]
[351250158,1738480240610,-500.0,0.00016438,2]
[351250159,1738480240619,-500.0,0.00016438,2]
[351250160,1738480240629,-500.0,0.00016438,2]
[351250161,1738480240638,-500.0,0.00016438,2]
[351250162,1738480240647,-10231.54062549,0.00016438,2]
[351250163,1738480240780,-507.13937451,0.00016438,2]
[351250164,1738480240790,-500.0,0.00016438,2]
[351250165,1738480240799,-500.0,0.00016438,2]
[351250166,1738480240809,-500.0,0.00016438,2]
[351250167,1738480240819,-500.0,0.00016438,2]
[351250168,1738480240828,-500.0,0.00016438,2]
[351250169,1738480240837,-505.35,0.00016438,2]
[351250170,1738480240951,-513.08353215,0.00016438,2]
[351250171,1738480240960,-500.0,0.00016438,2]
[351250172,1738480240970,-464.42709334,0.00016438,2]
[351250173,1738480241075,-35.57290666,0.00016438,2]
[351250174,1738480241085,-2568.51,0.00016438,2]
[351250175,1738480241095,-500.0,0.00016438,2]
[351250176,1738480241104,-500.0,0.00016438,2]
[351250177,1738480241114,-806.31,0.00016438,2]
[351250178,1738480241124,-500.0,0.00016438,2]
[351250179,1738480241134,-500.0,0.00016438,2]
[351250180,1738480241144,-500.0,0.00016438,2]
[351250181,1738480241154,-1454.26,0.00016438,2]
[351250182,1738480241165,-500.0,0.00016438,2]
[351250183,1738480241175,-500.0,0.00016438,2]
[351250184,1738480241185,-500.0,0.00016438,2]
[351250185,1738480241195,-500.0,0.00016574,2]
[351250186,1738480241205,-258.55991566,0.00016574,2]
[351250187,1738480241214,-515.40166202,0.00016575,2]
[351250188,1738480241223,-248.1482715,0.00016575,2]
[351250189,1738480241233,-500.0,0.00016575,2]
[351250190,1738480241243,-506.8554691,0.00016575,2]
[351250191,1738480241253,-500.0,0.00016575,2]
[351250192,1738480241262,-472.39813611,0.00016575,2]
[351250193,1738480241271,-292.68,0.00016575,2]
[351250194,1738480241281,-500.0,0.00016575,2]
[351250195,1738480241291,-500.0,0.00016575,2]
[351250196,1738480241304,-500.0,0.00016575,2]
[351250197,1738480241313,-500.0,0.00016575,2]
[351250198,1738480241323,-500.0,0.00016575,2]
[351250199,1738480241332,-500.0,0.00016575,2]
[351250200,1738480241342,-500.0,0.00016575,2]
[351250201,1738480241351,-500.0,0.00016575,2]
[351250202,1738480241361,-500.0,0.00016575,2]
[351250203,1738480241370,-500.0,0.00016575,2]
[351250204,1738480241380,-500.0,0.00016575,2]
[351250205,1738480241390,-500.0,0.00016575,2]
[351250206,1738480241399,-500.0,0.00016575,2]
[351250207,1738480241408,-500.0,0.00016575,2]
[351250208,1738480241418,-500.0,0.00016575,2]
[351250209,1738480241428,-500.0,0.00016575,2]
[351250210,1738480241437,-500.0,0.00016575,2]
[351250211,1738480241447,-500.0,0.00016575,2]
[351250212,1738480241456,-500.87419619,0.00016575,2]
[351250213,1738480241466,-500.0,0.00016575,2]
[351250214,1738480241476,-500.0,0.00016575,2]
[351250215,1738480241485,-500.0,0.00016575,2]
[351250216,1738480241494,-500.0,0.00016575,2]
[351250217,1738480241505,-500.0,0.00016575,2]
[351250218,1738480241515,-500.0,0.00016575,2]
[351250219,1738480241524,-500.0,0.00016575,2]
[351250220,1738480241534,-500.0,0.00016575,2]
[351250221,1738480241543,-500.0,0.00016575,2]
[351250222,1738480241553,-500.0,0.00016575,2]
[351250223,1738480241562,-500.0,0.00016575,2]
[351250224,1738480241572,-500.0,0.00016575,2]
[351250225,1738480241581,-500.0,0.00016575,2]
[351250226,1738480241591,-500.0,0.00016575,2]
[351250227,1738480241600,-500.0,0.00016575,2]
[351250228,1738480241610,-500.0,0.00016575,2]
[351250229,1738480241619,-500.0,0.00016575,2]
[351250230,1738480241629,-500.0,0.00016575,2]
[351250231,1738480241638,-502.02,0.00016575,2]
[351250232,1738480241648,-500.0,0.00016575,2]
[351250233,1738480241658,-500.0,0.00016575,2]
[351250234,1738480241667,-500.0,0.00016575,2]
[351250235,1738480241676,-625.53,0.00016575,2]
[351250236,1738480241686,-500.0,0.00016575,2]
[351250237,1738480241695,-1126.39,0.00016575,2]
[351250238,1738480241704,-500.0,0.00016575,2]
[351250239,1738480241714,-554.35,0.00016575,2]
[351250240,1738480241724,-585.14,0.00016575,2]
[351250241,1738480241734,-7110.45,0.00016575,2]
[351250242,1738480241743,-500.0,0.00016575,2]
[351250243,1738480241752,-500.0,0.00016575,2]
[351250244,1738480241762,-500.0,0.00016575,2]
[351250245,1738480241771,-500.0,0.00016575,2]
[351250246,1738480241781,-500.0,0.00016575,2]
[351250247,1738480241790,-387.1677724,0.00016575,2]
[351250248,1738480241800,-1015.77,0.00016575,2]
[351250249,1738480241810,-271.88601795,0.00016575,2]
[351250250,1738480241819,-508.40694186,0.00016575,2]
[351250251,1738480241829,-500.0,0.00016575,2]
[351250252,1738480241838,-500.0,0.00016575,2]
[351250253,1738480241847,-500.0,0.00016575,2]
[351250254,1738480241857,-500.0,0.00016575,2]
[351250255,1738480241866,-500.0,0.00016575,2]
[351250256,1738480241876,-500.0,0.00016575,2]
[351250257,1738480241889,-500.0,0.00016575,2]
[351250258,1738480241905,-500.0,0.00016575,2]
[351250259,1738480241919,-500.0,0.00016575,2]
[351250260,1738480241933,-500.0,0.00016575,2]
[351250261,1738480241944,-190.42,0.00016575,2]
[351250262,1738480241958,-500.0,0.00016575,2]
[351250263,1738480241971,-1894.2,0.00016575,2]
[351250264,1738480241985,-768.59,0.00016575,2]
[351250265,1738480241998,-500.0,0.00016575,2]
[351250266,1738480242011,-500.0,0.00016575,2]
[351250267,1738480242024,-969.3,0.00016575,2]
[351250268,1738480242038,-895.2,0.00016575,2]
[351250269,1738480242052,-500.0,0.00016575,2]
[351250270,1738480242064,-500.0,0.00016575,2]
[351250271,1738480242077,-500.0,0.00016575,2]
[351250272,1738480242089,-500.0,0.00016575,2]
[351250273,1738480242101,-10738.68,0.00016575,2]
[351250274,1738480242115,-500.0,0.00016575,2]
[351250275,1738480242127,-500.0,0.00016575,2]
[351250276,1738480242139,-505.35,0.00016575,2]
[351250277,1738480242149,-500.0,0.00016575,2]
[351250278,1738480242161,-500.0,0.00016575,2]
[351250279,1738480242173,-2568.51,0.00016575,2]
[351250280,1738480242185,-500.0,0.00016575,2]
[351250281,1738480242198,-806.31,0.00016575,2]
[351250282,1738480242212,-500.0,0.00016575,2]
[351250283,1738480242225,-500.0,0.00016575,2]
[351250284,1738480242239,-1454.26,0.00016575,2]
[351250285,1738480242253,-500.0,0.00016575,2]
[351250286,1738480242267,-500.0,0.00016575,2]
[351250287,1738480242278,-500.0,0.00016712,2]
[351250288,1738480242289,-500.0,0.00016712,2]
[351250289,1738480242304,-500.0,0.00016712,2]
[351250290,1738480242315,-500.0,0.00016712,2]
[351250292,1738480242327,-500.0,0.00016712,2]
[351250295,1738480242341,-298.40498315,0.00016712,2]
[351250296,1738480242354,-500.0,0.00016712,2]
[351250299,1738480242367,-500.0,0.00016712,2]
[351250301,1738480242378,-500.0,0.00016712,2]
[351250303,1738480242390,-500.0,0.00016712,2]
[351250305,1738480242403,-563.33282582,0.00016712,2]
[351250306,1738480242414,-500.0,0.00016712,2]
[351250307,1738480242426,-500.0,0.00016712,2]
[351250308,1738480242437,-500.0,0.00016712,2]
[351250309,1738480242449,-500.0,0.00016712,2]
[351250310,1738480242460,-278.91971324,0.00016712,2]
[351250311,1738480242471,-500.0,0.00016712,2]
[351250312,1738480242483,-500.0,0.00016712,2]
[351250313,1738480242494,-82.91909789,0.00016712,2]
[351250314,1738480242512,-417.08090211,0.00016712,2]
[351250315,1738480242523,-313.4946347,0.00016712,2]
[351250316,1738480242536,-186.5053653,0.00016712,2]
[351250318,1738480242548,-500.0,0.00016712,2]
[351250320,1738480242559,-378.27194955,0.00016712,2]
[351250322,1738480242571,-500.0,0.00016712,2]
[351250324,1738480242582,-193.38242919,0.00016712,2]